fUSD/lending_fUSD_20240519
["ID","MTS","AMOUNT","RATE_DAILY","PERIOD"]
[327461144,1716082240412,-500.0,0.00027397,2]
[327461145,1716082240422,-500.0,0.00027397,2]
[327461146,1716082240432,-500.0,0.00027397,2]
[327461147,1716082240441,-791.88,0.00027397,2]
[327461148,1716082240450,-500.0,0.00027397,2]
[327461149,1716082240460,-500.0,0.00027397,2]
[327461150,1716082240469,-1254.74,0.00027397,2]
[327461151,1716082240479,-500.0,0.00027397,2]
[327461152,1716082240489,-500.0,0.00027397,2]
[327461153,1716082240499,-890.48,0.00027397,2]
[327461154,1716082240508,-1317.08,0.00027397,2]
[327461155,1716082240519,-500.0,0.00027397,2]
[327461156,1716082240529,-500.0,0.00027397,2]
[327461157,1716082240538,-1486.92,0.00027397,2]
[327461158,1716082240548,-500.0,0.00027397,2]
[327461159,1716082240559,-1215.81,0.00027397,2]
[327461160,1716082240569,-500.0,0.00027397,2]
[327461161,1716082240579,-500.0,0.00027397,2]
[327461162,1716082240590,-500.0,0.00027397,2]
[327461163,1716082240599,-1461.12,0.00027397,2]
[327461164,1716082240608,-500.0,0.00027397,2]
[327461165,1716082240618,-500.0,0.00027397,2]
[327461166,1716082240627,-500.0,0.00027397,2]
[327461167,1716082240637,-712.48,0.00027397,2]
[327461168,1716082240646,-643.71,0.00027397,2]
[327461169,1716082240656,-945.44,0.00027397,2]
[327461170,1716082240665,-1781.22,0.00027397,2]
[327461171,1716082240675,-500.0,0.00027397,2]
[327461172,1716082240684,-500.0,0.00027397,2]
[327461173,1716082240693,-500.0,0.00027397,2]
[327461174,1716082240703,-500.0,0.00027397,2]
[327461175,1716082240712,-500.0,0.00027397,2]
[327461176,1716082240721,-986.97,0.00027397,2]
[327461177,1716082240730,-962.37,0.00027397,2]
[327461178,1716082240740,-722.54,0.00027397,2]
[327461179,1716082240749,-500.0,0.00027397,2]
[327461180,1716082240759,-1446.91,0.00027397,2]
[327461181,1716082240769,-500.0,0.00027397,2]
[327461182,1716082240778,-500.0,0.00027397,2]
[327461183,1716082240787,-500.0,0.00027397,2]
[327461184,1716082240796,-1219.05,0.00027397,2]
[327461185,1716082240806,-1189.8,0.00027397,2]
[327461186,1716082240816,-720.44,0.00027397,2]
[327461187,1716082240826,-563.6,0.00027397,2]
[327461188,1716082240836,-500.0,0.00027397,2]
[327461189,1716082240845,-500.0,0.00027397,2]
[327461190,1716082240854,-555.9,0.00027397,2]
[327461191,1716082240864,-500.0,0.00027397,2]
[327461192,1716082240873,-1783.23,0.00027397,2]
[327461193,1716082240883,-500.0,0.00027397,2]
[327461194,1716082240892,-500.0,0.00027397,2]
[327461195,1716082240901,-500.0,0.00027397,2]
[327461196,1716082240912,-500.0,0.00027397,2]
[327461197,1716082240922,-500.0,0.00027397,2]
[327461198,1716082240935,-500.0,0.00027397,2]
[327461199,1716082240944,-546.66,0.00027397,2]
[327461200,1716082240953,-1009.45,0.00027397,2]
[327461201,1716082240962,-845.39,0.00027397,2]
[327461202,1716082240971,-531.29,0.00027397,2]
[327461203,1716082240982,-1780.44,0.00027397,2]
[327461204,1716082240991,-528.11,0.00027397,2]
[327461205,1716082241000,-902.15,0.00027397,2]
[327461206,1716082241012,-1010.76,0.00027397,2]
[327461207,1716082241022,-500.0,0.00027397,2]
[327461208,1716082241031,-2190.05,0.00027397,2]
[327461209,1716082241041,-948.89,0.00027397,2]
[327461210,1716082241050,-568.1,0.00027397,2]
[327461211,1716082241060,-1519.63,0.00027397,2]
[327461212,1716082241071,-900.15,0.00027397,2]
[327461213,1716082241080,-604.04327605,0.00027397,2]
[327461214,1716082241090,-500.0,0.00027397,2]
[327461215,1716082241099,-500.0,0.00027397,2]
[327461216,1716082241109,-4105.81,0.00027397,2]
[327461217,1716082241118,-500.0,0.00027397,2]
[327461218,1716082241127,-500.0,0.00027397,2]
[327461219,1716082241136,-500.0,0.00027397,2]
[327461220,1716082241146,-500.0,0.00027397,2]
[327461221,1716082241157,-500.0,0.00027397,2]
[327461222,1716082241166,-703.81,0.00027397,2]
[327461223,1716082241175,-5362.31,0.00027397,2]
[327461224,1716082241184,-500.0,0.00027397,2]
[327461225,1716082241193,-500.0,0.00027397,2]
[327461226,1716082241202,-500.0,0.00027397,2]
[327461227,1716082241212,-3781.68,0.00027397,2]
[327461228,1716082241222,-500.0,0.00027397,2]
[327461229,1716082241232,-2404.44,0.00027397,2]
[327461230,1716082241242,-1411.64,0.00027397,2]
[327461231,1716082241252,-837.9,0.00027397,2]
[327461232,1716082241263,-500.0,0.00027397,2]
[327461233,1716082241273,-500.0,0.00027397,2]
[327461234,1716082241282,-6509.93,0.00027397,2]
[327461235,1716082241292,-500.0,0.00027397,2]
[327461236,1716082241301,-500.0,0.00027397,2]
[327461237,1716082241310,-500.0,0.00027397,2]
[327461238,1716082241320,-1252.47,0.00027397,2]
[327461239,1716082241328,-500.0,0.00027397,2]
[327461240,1716082241339,-500.0,0.00027397,2]
[327461241,1716082241349,-632.70524889,0.00027397,2]
[327461242,1716082241359,-500.0,0.00027397,2]
[327461243,1716082241369,-533.02845698,0.00027397,2]
[327461244,1716082241379,-777.77,0.00027397,2]
[327461245,1716082241387,-1416.33,0.00027397,2]
[327461246,1716082241399,-637.69288455,0.00027397,2]
[327461247,1716082241411,-500.0,0.00027397,2]
[327461248,1716082241425,-4000.0,0.00027397,2]
[327461249,1716082241438,-1578.04779494,0.00027436,2]
[327461250,1716082241450,-1190.2,0.00027495,2]
[327461251,1716082241462,-733.61653931,0.0002757,2]
[327461252,1716082241472,-322.21807536,0.00027571,2]
[327461253,1716082241483,-2813.799288,0.0002759,3]
[327461254,1716082241493,-180.0,0.00027599,2]
[327461255,1716082241503,-185.55843489,0.00027661,2]
[327461256,1716082241515,-252.30363368,0.00027664,2]
[327461257,1716082241526,-500.0,0.0002767,2]
[327461258,1716082241537,-500.0,0.0002767,2]
[327461259,1716082241548,-552.87989068,0.0002767,2]
[327461260,1716082241559,-498.46459399,0.0002767,2]
[327461261,1716082241572,-500.0,0.0002767,2]
[327461262,1716082241583,-500.0,0.0002767,2]
[327461263,1716082241594,-500.0,0.0002767,2]
[327461264,1716082241606,-500.0,0.0002767,2]
[327461265,1716082241619,-500.0,0.0002767,2]
[327461266,1716082241630,-500.0,0.0002767,2]
[327461267,1716082241643,-500.0,0.0002767,2]
[327461268,1716082241654,-500.0,0.0002767,2]
[327461269,1716082241666,-500.0,0.0002767,2]
[327461270,1716082241678,-500.0,0.0002767,2]
[327461271,1716082241690,-500.0,0.0002767,2]
[327461272,1716082241700,-500.0,0.0002767,2]
[327461273,1716082241711,-500.0,0.0002767,2]
[327461274,1716082241724,-500.0,0.0002767,2]
[327461275,1716082241734,-500.0,0.0002767,2]
[327461276,1716082241746,-478.07,0.0002767,2]
[327461277,1716082241757,-500.0,0.0002767,2]
[327461278,1716082241769,-500.0,0.0002767,2]
[327461279,1716082241781,-500.0,0.0002767,2]
[327461280,1716082241791,-500.0,0.0002767,2]
[327461281,1716082241802,-793.82,0.0002767,2]
[327461282,1716082241813,-500.0,0.0002767,2]
[327461283,1716082241823,-500.0,0.0002767,2]
[327461284,1716082241833,-500.0,0.0002767,2]
[327461285,1716082241842,-687.64,0.0002767,2]
[327461286,1716082241853,-500.0,0.0002767,2]
[327461287,1716082241864,-500.0,0.0002767,2]
[327461288,1716082241875,-182.78766022,0.0002767,2]
[327461289,1716082241885,-500.0,0.0002767,2]
[327461290,1716082241896,-500.0,0.0002767,2]
[327461291,1716082241908,-500.0,0.0002767,2]
[327461292,1716082241919,-500.0,0.0002767,2]
[327461293,1716082241931,-500.0,0.0002767,2]
[327461294,1716082241943,-500.0,0.0002767,2]
[327461295,1716082241954,-500.0,0.0002767,2]
[327461296,1716082241965,-500.0,0.0002767,2]
[327461297,1716082241976,-500.0,0.0002767,2]
[327461298,1716082241987,-500.0,0.0002767,2]
[327461299,1716082241999,-506.59733955,0.0002767,2]
[327461300,1716082242010,-499.5489,0.0002767,2]
[327461301,1716082242022,-500.0,0.0002767,2]
[327461302,1716082242032,-500.0,0.0002767,2]
[327461303,1716082242042,-500.0,0.0002767,2]
[327461304,1716082242053,-500.0,0.0002767,2]
[327461305,1716082242064,-500.0,0.0002767,2]
[327461306,1716082242073,-500.0,0.0002767,2]
[327461307,1716082242083,-500.0,0.0002767,2]
[327461308,1716082242094,-500.0,0.0002767,2]
[327461309,1716082242106,-500.0,0.0002767,2]
[327461310,1716082242117,-500.0,0.0002767,2]
[327461311,1716082242128,-500.0,0.0002767,2]
[327461312,1716082242140,-797.47,0.0002767,2]
[327461313,1716082242151,-500.0,0.0002767,2]
[327461314,1716082242161,-529.92621918,0.0002767,2]
[327461315,1716082242172,-500.0,0.0002767,2]
[327461316,1716082242182,-500.0,0.0002767,2]
[327461317,1716082242193,-500.0,0.0002767,2]
[327461318,1716082242205,-500.0,0.0002767,2]
[327461319,1716082242216,-182.35792724,0.0002767,2]
[327461320,1716082242228,-500.0,0.0002767,2]
[327461321,1716082242241,-499.0671499,0.0002767,2]
[327461322,1716082242252,-500.0,0.0002767,2]
[327461323,1716082242263,-500.0,0.0002767,2]
[327461324,1716082242273,-500.0,0.0002767,2]
[327461325,1716082242283,-500.0,0.0002767,2]
[327461326,1716082242293,-739.51,0.0002767,2]
[327461327,1716082242303,-511.03482171,0.0002767,2]
[327461328,1716082242314,-500.0,0.0002767,2]
[327461329,1716082242325,-500.0,0.0002767,2]
[327461330,1716082242338,-509.83058426,0.0002767,2]
[327461331,1716082242348,-515.75782757,0.0002767,2]
[327461332,1716082242360,-500.0,0.0002767,2]
[327461333,1716082242371,-500.0,0.0002767,2]
[327461334,1716082242382,-500.0,0.0002767,2]
[327461335,1716082242393,-500.0,0.0002767,2]
[327461336,1716082242402,-500.0,0.0002767,2]
[327461337,1716082242414,-1955.27,0.0002767,2]
[327461338,1716082242426,-500.0,0.0002767,2]
[327461339,1716082242437,-500.0,0.0002767,2]
[327461340,1716082242448,-512.79935302,0.0002767,2]
[327461341,1716082242460,-500.0,0.0002767,2]
[327461342,1716082242470,-500.0,0.0002767,2]
[327461343,1716082242481,-500.0,0.0002767,2]
[327461344,1716082242493,-500.0,0.0002767,2]
[327461345,1716082242503,-500.0,0.0002767,2]
[327461346,1716082242514,-1178.57,0.0002767,2]
[327461347,1716082242525,-500.0,0.0002767,2]
[327461348,1716082242536,-305.36398305,0.0002767,2]
[327461349,1716082242546,-955.1,0.0002767,2]
[327461350,1716082242560,-10244.61,0.0002767,2]
[327461351,1716082242570,-500.0,0.0002767,2]
[327461352,1716082242581,-1311.01,0.0002767,2]
[327461353,1716082242591,-500.0,0.0002767,2]
[327461354,1716082242601,-1447.63,0.0002767,2]
[327461355,1716082242612,-500.0,0.0002767,2]
[327461356,1716082242622,-500.0,0.0002767,2]
[327461357,1716082242632,-500.0,0.0002767,2]
[327461358,1716082242643,-500.0,0.0002767,2]
[327461359,1716082242653,-500.0,0.0002767,2]
[327461360,1716082242663,-519.28391565,0.0002767,2]
[327461361,1716082242673,-500.0,0.0002767,2]
[327461362,1716082242683,-500.0,0.0002767,2]
[327461363,1716082242693,-726.55,0.0002767,2]
[327461364,1716082242703,-500.0,0.0002767,2]
[327461365,1716082242713,-500.0,0.0002767,2]
[327461366,1716082242723,-656.84,0.0002767,2]
[327461367,1716082242733,-500.0,0.0002767,2]
[327461368,1716082242743,-500.0,0.0002767,2]
[327461369,1716082242753,-380.82,0.0002767,2]
[327461370,1716082242763,-2827.83,0.0002767,2]
[327461371,1716082242773,-1884.05,0.0002767,2]
[327461372,1716082242783,-500.0,0.0002767,2]
[327461373,1716082242794,-971.42,0.0002767,2]
[327461374,1716082242804,-500.0,0.0002767,2]
[327461375,1716082242814,-500.0,0.0002767,2]
[327461376,1716082242824,-414.23034551,0.0002767,2]
[327461377,1716082242834,-500.0,0.0002767,2]
[327461378,1716082242844,-1696.39,0.0002767,2]
[327461379,1716082242855,-2379.68,0.0002767,2]
[327461380,1716082242864,-500.0,0.0002767,2]
[327461381,1716082242874,-2000.0,0.00027671,2]
[327461382,1716082242884,-200.0,0.00027671,2]
[327461383,1716082242894,-500.0,0.00027671,2]
[327461384,1716082242904,-500.0,0.00027671,2]
[327461385,1716082242916,-500.0,0.00027671,2]
[327461386,1716082242926,-500.0,0.00027671,2]
[327461387,1716082242940,-500.0,0.00027671,2]
[327461388,1716082242950,-500.0,0.00027671,2]
[327461389,1716082242960,-500.0,0.00027671,2]
[327461390,1716082242971,-500.0,0.00027671,2]
[327461391,1716082242982,-500.0,0.00027671,2]
[327461392,1716082242992,-500.0,0.00027671,2]
[327461393,1716082243002,-500.0,0.00027671,2]
[327461394,1716082243014,-500.0,0.00027671,2]
[327461395,1716082243025,-500.0,0.00027671,2]
[327461396,1716082243036,-500.0,0.00027671,2]
[327461397,1716082243046,-500.0,0.00027671,2]
[327461398,1716082243057,-500.0,0.00027671,2]
[327461399,1716082243067,-500.0,0.00027671,2]
[327461400,1716082243078,-500.0,0.00027671,2]
[327461401,1716082243088,-500.0,0.00027671,2]
[327461402,1716082243099,-500.0,0.00027671,2]
[327461403,1716082243109,-500.0,0.00027671,2]
[327461404,1716082243120,-500.0,0.00027671,2]
[327461405,1716082243130,-500.0,0.00027671,2]
[327461407,1716082243141,-500.0,0.00027671,2]
[327461408,1716082243151,-500.0,0.00027671,2]
[327461409,1716082243161,-500.0,0.00027671,2]
[327461410,1716082243172,-756.44,0.00027671,2]
[327461411,1716082243183,-525.25,0.00027671,2]
[327461412,1716082243195,-500.0,0.00027671,2]
[327461413,1716082243208,-882.93,0.00027671,2]
[327461415,1716082243218,-500.0,0.00027671,2]
[327461417,1716082243228,-500.0,0.00027671,2]
[327461420,1716082243239,-500.0,0.00027671,2]
[327461423,1716082243248,-500.0,0.00027671,2]
[327461425,1716082243258,-500.0,0.00027671,2]
[327461427,1716082243267,-500.0,0.00027671,2]
[327461429,1716082243278,-1023.73,0.00027671,2]
[327461431,1716082243288,-500.0,0.00027671,2]
[327461432,1716082243299,-522.65,0.00027671,2]
[327461433,1716082243309,-543.0,0.00027671,2]
[327461434,1716082243319,-500.0,0.00027671,2]
[327461435,1716082243329,-773.0,0.00027671,2]
[327461436,1716082243340,-774.25,0.00027671,2]
[327461437,1716082243351,-500.0,0.00027671,2]
[327461438,1716082243361,-500.0,0.00027671,2]
[327461439,1716082243371,-500.0,0.00027671,2]
[327461440,1716082243381,-500.0,0.00027671,2]
[327461441,1716082243391,-500.0,0.00027671,2]
[327461442,1716082243401,-500.0,0.00027671,2]
[327461443,1716082243411,-174.05,0.00027671,2]
[327461444,1716082243421,-500.0,0.00027671,2]
[327461445,1716082243431,-500.0,0.00027671,2]
[327461446,1716082243441,-500.0,0.00027671,2]
[327461447,1716082243451,-500.0,0.00027671,2]
[327461448,1716082243462,-500.0,0.00027671,2]
[327461449,1716082243473,-500.0,0.00027671,2]
[327461450,1716082243484,-500.0,0.00027671,2]
[327461451,1716082243495,-500.0,0.00027671,2]
[327461452,1716082243506,-500.0,0.00027671,2]
[327461453,1716082243516,-578.08,0.00027671,2]
[327461454,1716082243527,-980.32,0.00027671,2]
[327461455,1716082243538,-500.0,0.00027671,2]
[327461456,1716082243548,-667.35,0.00027671,2]
[327461457,1716082243558,-500.0,0.00027671,2]
[327461458,1716082243568,-500.0,0.00027671,2]
[327461459,1716082243579,-500.0,0.00027671,2]
[327461460,1716082243589,-500.0,0.00027671,2]
[327461461,1716082243599,-500.0,0.00027671,2]
[327461462,1716082243609,-500.0,0.00027671,2]
[327461463,1716082243619,-500.0,0.00027671,2]
[327461464,1716082243631,-500.0,0.00027671,2]
[327461465,1716082243641,-500.0,0.00027671,2]
[327461466,1716082243651,-500.0,0.00027671,2]
[327461467,1716082243662,-500.0,0.00027671,2]
[327461468,1716082243673,-500.0,0.00027671,2]
[327461469,1716082243684,-500.0,0.00027671,2]
[327461470,1716082243694,-500.0,0.00027671,2]
[327461471,1716082243705,-500.0,0.00027671,2]
[327461472,1716082243715,-856.62,0.00027671,2]
[327461473,1716082243725,-779.63,0.00027671,2]
[327461474,1716082243735,-500.0,0.00027671,2]
[327461475,1716082243746,-500.0,0.00027671,2]
[327461476,1716082243756,-500.0,0.00027671,2]
[327461477,1716082243766,-500.0,0.00027671,2]
[327461478,1716082243778,-500.0,0.00027671,2]
[327461479,1716082243788,-500.0,0.00027671,2]
[327461480,1716082243799,-500.0,0.00027671,2]
[327461481,1716082243809,-639.93,0.00027671,2]
[327461482,1716082243820,-500.0,0.00027671,2]
[327461483,1716082243832,-500.0,0.00027671,2]
[327461484,1716082243842,-500.0,0.00027671,2]
[327461485,1716082243851,-1255.93,0.00027671,2]
[327461486,1716082243862,-713.46,0.00027671,2]
[327461487,1716082243872,-500.0,0.00027671,2]
[327461488,1716082243882,-500.0,0.00027671,2]
[327461489,1716082243893,-573.24,0.00027671,2]
[327461490,1716082243904,-280.56398263,0.00027671,2]
[327461491,1716082243915,-4072.27,0.00027671,2]
[327461492,1716082243926,-500.0,0.00027671,2]
[327461493,1716082243939,-3429.99,0.00027671,2]
[327461494,1716082243950,-500.0,0.00027671,2]
[327461495,1716082243961,-500.0,0.00027671,2]
[327461496,1716082243972,-14641.45,0.00027671,2]
[327461497,1716082243984,-500.0,0.00027671,2]
[327461498,1716082243994,-989.32,0.00027671,2]
[327461499,1716082244004,-500.0,0.00027671,2]
[327461500,1716082244015,-500.0,0.00027671,2]
[327461501,1716082244025,-608.54,0.00027671,2]
[327461502,1716082244035,-500.0,0.00027671,2]
[327461503,1716082244045,-500.0,0.00027671,2]
[327461504,1716082244056,-1603.85,0.00027671,2]
[327461505,1716082244067,-500.0,0.00027671,2]
[327461506,1716082244078,-500.0,0.00027671,2]
[327461507,1716082244088,-500.0,0.00027671,2]
[327461508,1716082244098,-500.0,0.00027671,2]
[327461509,1716082244107,-500.0,0.00027671,2]
[327461510,1716082244118,-500.0,0.00027671,2]
[327461511,1716082244129,-500.0,0.00027671,2]
[327461512,1716082244139,-622.79,0.00027671,2]
[327461513,1716082244149,-2711.99,0.00027671,2]
[327461514,1716082244159,-3199.92,0.00027671,2]
[327461515,1716082244169,-500.0,0.00027671,2]
[327461516,1716082244179,-579.86,0.00027671,2]
[327461517,1716082244189,-500.0,0.00027671,2]
[327461518,1716082244199,-518.99,0.00027671,2]
[327461519,1716082244210,-500.0,0.00027671,2]
[327461520,1716082244537,-500.0,0.00027671,2]
[327461521,1716082244558,-2911.46,0.00027671,2]
[327461522,1716082244575,-500.0,0.00027671,2]
[327461523,1716082244587,-500.0,0.00027671,2]
[327461524,1716082244597,-500.0,0.00027671,2]
[327461525,1716082244606,-595.93,0.00027671,2]
[327461526,1716082244616,-1062.35,0.00027671,2]
[327461527,1716082244625,-500.0,0.00027671,2]
[327461528,1716082244635,-500.0,0.00027671,2]
[327461529,1716082244644,-500.0,0.00027671,2]
[327461530,1716082244655,-791.88,0.00027671,2]
[327461531,1716082244664,-500.0,0.00027671,2]
[327461532,1716082244674,-500.0,0.00027671,2]
[327461533,1716082244684,-1254.74,0.00027671,2]
[327461534,1716082244693,-500.0,0.00027671,2]
[327461535,1716082244703,-500.0,0.00027671,2]
[327461536,1716082244712,-890.48,0.00027671,2]
[327461537,1716082244723,-1317.08,0.00027671,2]
[327461538,1716082244732,-500.0,0.00027671,2]
[327461539,1716082244742,-500.0,0.00027671,2]
[327461540,1716082244751,-1486.92,0.00027671,2]
[327461541,1716082244761,-500.0,0.00027671,2]
[327461542,1716082244770,-1215.81,0.00027671,2]
[327461543,1716082244780,-500.0,0.00027671,2]
[327461544,1716082244791,-500.0,0.00027671,2]
[327461545,1716082244801,-500.0,0.00027671,2]
[327461546,1716082244811,-1461.12,0.00027671,2]
[327461547,1716082244821,-500.0,0.00027671,2]
[327461548,1716082244830,-500.0,0.00027671,2]
[327461549,1716082244840,-500.0,0.00027671,2]
[327461550,1716082244849,-712.48,0.00027671,2]
[327461551,1716082244859,-643.71,0.00027671,2]
[327461552,1716082244868,-945.44,0.00027671,2]
[327461553,1716082244878,-1781.22,0.00027671,2]
[327461554,1716082244887,-500.0,0.00027671,2]
[327461555,1716082244898,-500.0,0.00027671,2]
[327461556,1716082244907,-500.0,0.00027671,2]
[327461557,1716082244916,-500.0,0.00027671,2]
[327461558,1716082244927,-500.0,0.00027671,2]
[327461559,1716082244941,-986.97,0.00027671,2]
[327461560,1716082244950,-962.37,0.00027671,2]
[327461561,1716082244960,-722.54,0.00027671,2]
[327461562,1716082244969,-500.0,0.00027671,2]
[327461563,1716082244980,-1446.91,0.00027671,2]
[327461564,1716082244989,-500.0,0.00027671,2]
[327461565,1716082244999,-500.0,0.00027671,2]
[327461566,1716082245010,-500.0,0.00027671,2]
[327461567,1716082245020,-1189.8,0.00027671,2]
[327461568,1716082245030,-1219.05,0.00027671,2]
[327461569,1716082245040,-720.44,0.00027671,2]
[327461570,1716082245049,-563.6,0.00027671,2]
[327461571,1716082245059,-500.0,0.00027671,2]
[327461572,1716082245069,-500.0,0.00027671,2]
[327461573,1716082245078,-555.9,0.00027671,2]
[327461574,1716082245087,-500.0,0.00027671,2]
[327461575,1716082245097,-1783.23,0.00027671,2]
[327461576,1716082245108,-500.0,0.00027671,2]
[327461577,1716082245117,-500.0,0.00027671,2]
[327461578,1716082245127,-500.0,0.00027671,2]
[327461579,1716082245136,-500.0,0.00027671,2]
[327461580,1716082245146,-500.0,0.00027671,2]
[327461581,1716082245155,-546.66,0.00027671,2]
[327461582,1716082245165,-1009.45,0.00027671,2]
[327461583,1716082245175,-845.39,0.00027671,2]
[327461584,1716082245185,-531.29,0.00027671,2]
[327461585,1716082245194,-528.11,0.00027671,2]
[327461586,1716082245203,-1780.44,0.00027671,2]
[327461587,1716082245213,-902.15,0.00027671,2]
[327461588,1716082245222,-1010.76,0.00027671,2]
[327461589,1716082245232,-500.0,0.00027671,2]
[327461590,1716082245241,-2190.05,0.00027671,2]
[327461591,1716082245250,-948.89,0.00027671,2]
[327461592,1716082245260,-568.1,0.00027671,2]
[327461593,1716082245269,-1519.63,0.00027671,2]
[327461594,1716082245279,-900.15,0.00027671,2]
[327461595,1716082245288,-500.0,0.00027671,2]
[327461596,1716082245297,-500.0,0.00027671,2]
[327461597,1716082245307,-4105.81,0.00027671,2]
[327461598,1716082245317,-500.0,0.00027671,2]
[327461599,1716082245327,-500.0,0.00027671,2]
[327461600,1716082245336,-500.0,0.00027671,2]
[327461601,1716082245346,-628.84,0.00027671,2]
[327461602,1716082245355,-500.0,0.00027671,2]
[327461603,1716082245365,-703.81,0.00027671,2]
[327461604,1716082245375,-5362.31,0.00027671,2]
[327461605,1716082245384,-500.0,0.00027671,2]
[327461606,1716082245393,-1715.75833,0.00027671,2]
[327461607,1716082245403,-500.0,0.00027671,2]
[327461608,1716082245412,-500.0,0.00027671,2]
[327461609,1716082245422,-3781.68,0.00027671,2]
[327461610,1716082245431,-500.0,0.00027671,2]
[327461611,1716082245440,-2404.44,0.00027671,2]
[327461612,1716082245449,-1411.64,0.00027671,2]
[327461613,1716082245458,-837.9,0.00027671,2]
[327461614,1716082245468,-500.0,0.00027671,2]
[327461615,1716082245477,-500.0,0.00027671,2]
[327461616,1716082245486,-6509.93,0.00027671,2]
[327461617,1716082245496,-500.0,0.00027671,2]
[327461618,1716082245505,-500.0,0.00027671,2]
[327461619,1716082245514,-500.0,0.00027671,2]
[327461620,1716082245524,-1252.47,0.00027671,2]
[327461621,1716082245534,-500.0,0.00027671,2]
[327461622,1716082245543,-500.0,0.00027671,2]
[327461623,1716082245553,-500.0,0.00027671,2]
[327461624,1716082245562,-777.77,0.00027671,2]
[327461625,1716082245572,-1416.33,0.00027671,2]
[327461626,1716082245581,-500.0,0.00027671,2]
[327461627,1716082245590,-439.0,0.00027686,2]
[327461628,1716082245600,-721.505,0.00027686,2]
[327461629,1716082245610,-239.268,0.00027686,2]
[327461630,1716082245619,-444.0,0.00027686,2]
[327461631,1716082245629,-813.0,0.00027686,2]
[327461632,1716082245638,-299.771,0.00027686,2]
[327461633,1716082245647,-204.723,0.00027686,2]
[327461634,1716082245656,-1647.0,0.00027686,2]
[327461635,1716082245666,-246.382,0.00027686,2]
[327461636,1716082245675,-1977.0,0.00027686,2]
[327461637,1716082245685,-1141.0,0.00027686,2]
[327461638,1716082245694,-3159.0,0.00027686,2]
[327461639,1716082245703,-223.0,0.00027686,2]
[327461640,1716082245713,-20078.06262452,0.00027686,2]
[327461643,1716082246133,-1430.53902002,0.00027686,2]
[327461644,1716082246147,-4310.37339755,0.00027686,2]
[327461645,1716082246159,-3925.699,0.00027686,2]
[327461646,1716082246171,-913.57064476,0.00027686,2]
[327461647,1716082246182,-2999.20290842,0.00027686,2]
[327461648,1716082246193,-4194.55240473,0.00027686,2]
[327461649,1716082246204,-289.0,0.00027686,2]
[327461650,1716082246213,-5755.0,0.00027686,2]
[327461651,1716082246223,-2160.0,0.00027686,2]
[327461652,1716082246233,-5930.104,0.00027686,2]
[327461653,1716082246242,-976.092,0.00027686,2]
[327461654,1716082246251,-1250.0,0.000277,2]
[327461655,1716082246261,-500.0,0.000277,2]
[327461656,1716082246270,-3645.66791152,0.00027817,2]